[Event "DLM Youth 2024"]
[Site "Tuebingen"]
[Date "2024.10.04"]
[Round "3"]
[White "Tu, Audrey"]
[Black "Busch, Lara Sophie"]
[Result "1/2-1/2"]
[ECO "C60"]
[WhiteElo "1722"]
[BlackElo "1714"]
[Annotator "NA RC"]
[PlyCount "75"]
[EventDate "2024.10.03"]
[EventType "team-swiss"]
[EventRounds "7"]
[EventCountry "GER"]
[SourceTitle "playchess.com"]
[Source "ChessBase"]
[SourceQuality "1"]
[TimeControl "40/5400+30:1800+30"]

1. e4 {[%emt 0:00:01]} e5 {[%emt 0:00:07]} 2. Nf3 {[%emt 0:00:05]} Nc6 {[%emt 0:00:09]} 3. Bb5 {[%emt 0:00:06]} Nge7 {[%emt 0:00:16]} 4. Bc4 {[%emt 0:06:36]} h6 {[%emt 0:04:13]} 5. d4 {[%emt 0:08:24]} exd4 {[%emt 0:03:40]} 6. Nxd4 {[%emt 0:01:17]} Nxd4 {[%emt 0:05:12]} 7. Qxd4 {[%emt 0:00:34]} Nc6 {[%emt 0:01:36]} 8. Qd5 {[%emt 0:07:21]} Qf6 {[%emt 0:03:29]} 9. O-O {[%emt 0:02:16]} d6 {[%emt 0:03:06]} 10. Bb5 {[%emt 0:03:19]} Bd7 {[%emt 0:01:14]} 11. Re1 {[%emt 0:08:57]} Be7 {[%emt 0:09:05]} 12. Nc3 {[%emt 0:04:29]} O-O {[%emt 0:01:29]} 13. Qd1 {[%emt 0:09:48]} Be6 {[%emt 0:09:30]} 14. Be3 {[%emt 0:07:09]} Qg6 {[%emt 0:06:50]} 15. Nd5 {[%emt 0:02:27]} Bd8 {[%emt 0:04:38]} 16. Bd3 {[%emt 0:03:09]} Ne5 {[%emt 0:02:20]} 17. Nf4 {[%emt 0:03:13]} Qf6 {[%emt 0:02:04]} 18. Be2 {[%emt 0:01:39]} Nc4 {[%emt 0:02:46]} 19. Bxc4 {[%emt 0:04:09]} Bxc4 {[%emt 0:00:38]} 20. b3 {[%emt 0:00:57]} Be6 {[%emt 0:01:38]} 21. Nxe6 {[%emt 0:00:54]} fxe6 {[%emt 0:04:36]} 22. Qd3 {[%emt 0:02:59]} Qg6 {[%emt 0:03:23]} 23. Rad1 {[%emt 0:03:01]} Kh7 {[%emt 0:04:46]} 24. Bd2 {[%emt 0:03:40]} e5 {[%emt 0:02:58]} 25. Re3 {[%emt 0:01:40]} Bg5 {[%emt 0:03:41]} 26. Rg3 {[%emt 0:00:33]} Qf6 {[%emt 0:00:50]} 27. Rf3 {[%emt 0:03:07]} Qe7 {[%emt 0:00:29]} 28. Bxg5 {[%emt 0:00:55]} Qxg5 {[%emt 0:00:59]} 29. Rg3 {[%emt 0:01:41]} Qf4 {[%emt 0:01:10]} 30. Qe3 {[%emt 0:02:18]} Qxe3 {[%emt 0:07:40]} 31. Rxe3 {[%emt 0:02:21]} Rf7 {[%emt 0:00:56]} 32. f3 {[%emt 0:01:25]} g5 {[%emt 0:00:35]} 33. Kf2 {[%emt 0:00:56]} Raf8 {[%emt 0:01:03]} 34. Rdd3 {[%emt 0:00:38]} Kg6 {[%emt 0:00:49]} 35. h3 {[%emt 0:01:39]} h5 {[%emt 0:00:41]} 36. Rc3 {[%emt 0:02:16]} g4 {[%emt 0:06:27]} 37. h4 {[%emt 0:00:47]} c5 {[%emt 0:01:06]} 38. Rcd3 {[%emt 0:00:35]} 1/2-1/2

[Event "DLM Youth 2024"]
[Site "Tuebingen"]
[Date "2024.10.04"]
[Round "3"]
[White "Hoffmann, Sophia"]
[Black "Vranckx, Oscar"]
[Result "0-1"]
[ECO "B13"]
[WhiteElo "1718"]
[BlackElo "1933"]
[Annotator "RC"]
[PlyCount "37"]
[EventDate "2024.10.03"]
[EventType "team-swiss"]
[EventRounds "7"]
[EventCountry "GER"]
[SourceTitle "playchess.com"]
[Source "ChessBase"]
[SourceQuality "1"]
[TimeControl "40/5400+30:1800+30"]

1. d4 {[%emt 0:00:03]} d5 {[%emt 0:00:05]} 2. Bf4 {[%emt 0:00:05]} c5 {[%emt 0:00:06]} 3. e3 {[%emt 0:00:05]} cxd4 {[%emt 0:00:05]} 4. exd4 {[%emt 0:00:09]} Nc6 {[%emt 0:00:06]} 5. c3 {[%emt 0:01:03]} f6 {[%emt 0:00:23]} 6. Bd3 {[%emt 0:08:21]} e5 {[%emt 0:00:12]} 7. Qh5+ {[%emt 0:11:00]} g6 {[%emt 0:00:13]} 8. Bxg6+ {[%emt 0:06:50]} hxg6 {[%emt 0:00:11]} 9. Qxh8 {[%emt 0:13:26]} exf4 {[%emt 0:00:20]} 10. Qxg8 {[%emt 0:01:50]} Bf5 {[%emt 0:00:06]} 11. Qh7 {[%emt 0:06:20]} Qb6 {[%emt 0:01:58]} 12. Nf3 {[%emt 0:13:48]} Qxb2 {[%emt 0:06:02]} 13. O-O {[%emt 0:02:45]} Qxa1 {[%emt 0:00:17]} 14. Qxb7 {[%emt 0:11:28]} Rc8 {[%emt 0:00:27]} 15. Qb3 {[%emt 0:01:21]} Rb8 {[%emt 0:01:25]} 16. Re1+ {[%emt 0:10:23]} Be7 {[%emt 0:00:19]} 17. Qxd5 {[%emt 0:02:36]} Rxb1 {[%emt 0:01:00]} 18. Qxc6+ {[%emt 0:00:38]} Kf8 {[%emt 0:00:00]} 19. Qa8+ {[%emt 0:06:46]} 0-1

[Event "DLM Youth 2024"]
[Site "Tuebingen"]
[Date "2024.10.04"]
[Round "3"]
[White "Sun, Christopher"]
[Black "Noennig, Jakob"]
[Result "0-1"]
[ECO "C54"]
[WhiteElo "1711"]
[BlackElo "1986"]
[Annotator "RC"]
[PlyCount "72"]
[EventDate "2024.10.03"]
[EventType "team-swiss"]
[EventRounds "7"]
[EventCountry "GER"]
[SourceTitle "playchess.com"]
[Source "ChessBase"]
[SourceQuality "1"]
[TimeControl "40/5400+30:1800+30"]

1. e4 {[%emt 0:00:01]} e5 {[%emt 0:00:08]} 2. Nf3 {[%emt 0:00:03]} Nc6 {[%emt 0:00:08]} 3. Bc4 {[%emt 0:00:03]} Bc5 {[%emt 0:00:10]} 4. c3 {[%emt 0:00:05]} Nf6 {[%emt 0:00:07]} 5. d4 {[%emt 0:00:03]} exd4 {[%emt 0:00:08]} 6. cxd4 {[%emt 0:00:05]} Bb4+ {[%emt 0:00:07]} 7. Bd2 {[%emt 0:00:33]} Nxe4 {[%emt 0:01:04]} 8. Bxb4 {[%emt 0:00:08]} Nxb4 {[%emt 0:00:06]} 9. Bxf7+ {[%emt 0:00:10]} Kxf7 {[%emt 0:00:05]} 10. Qb3+ {[%emt 0:00:10]} d5 {[%emt 0:00:07]} 11. Qxb4 {[%emt 0:00:26]} Rf8 {[%emt 0:00:24]} 12. O-O {[%emt 0:02:29]} Kg8 {[%emt 0:01:05]} 13. Nc3 {[%emt 0:02:49]} Ng5 {[%emt 0:27:07]} 14. Nxg5 {[%emt 0:04:52]} Qxg5 {[%emt 0:00:14]} 15. Kh1 {[%emt 0:01:20]} b6 {[%emt 0:03:42]} 16. Rae1 {[%emt 0:02:46]} Ba6 {[%emt 0:07:29]} 17. Rg1 {[%emt 0:08:19]} Rxf2 {[%emt 0:14:25]} 18. Qa4 {[%emt 0:02:28]} Bb7 {[%emt 0:07:34]} 19. Qd7 {[%emt 0:03:11]} Rf7 {[%emt 0:07:10]} 20. Re8+ {[%emt 0:04:32]} Rxe8 {[%emt 0:00:14]} 21. Qxe8+ {[%emt 0:00:21]} Rf8 {[%emt 0:00:04]} 22. Qe6+ {[%emt 0:00:52]} Kh8 {[%emt 0:00:13]} 23. Nb5 {[%emt 0:04:03]} Qd8 {[%emt 0:13:03]} 24. Nxa7 {[%emt 0:08:11]} Rf6 {[%emt 0:00:47]} 25. Nc6 {[%emt 0:00:28]} Bxc6 {[%emt 0:00:08]} 26. Qe3 {[%emt 0:00:44]} Qe8 {[%emt 0:01:39]} 27. Qg3 {[%emt 0:00:23]} Qf7 {[%emt 0:00:39]} 28. h3 {[%emt 0:00:23]} h6 {[%emt 0:02:13]} 29. Re1 {[%emt 0:00:27]} Rf1+ {[%emt 0:00:28]} 30. Rxf1 {[%emt 0:00:01]} Qxf1+ {[%emt 0:00:02]} 31. Kh2 {[%emt 0:00:13]} Qf7 {[%emt 0:00:15]} 32. Qe5 {[%emt 0:00:39]} Qd7 {[%emt 0:00:21]} 33. Qe2 {[%emt 0:00:44]} Bb5 {[%emt 0:00:44]} 34. Qf2 {[%emt 0:00:14]} Qd6+ {[%emt 0:00:20]} 35. Kh1 {[%emt 0:00:12]} c5 {[%emt 0:00:17]} 36. a3 {[%emt 0:01:58]} Qf6 {[%emt 0:00:18]} 0-1

[Event "DLM Youth 2024"]
[Site "Tuebingen"]
[Date "2024.10.04"]
[Round "3"]
[White "Andersen, Jonathan"]
[Black "Dohon, Maria-Johanna"]
[Result "1-0"]
[ECO "B56"]
[WhiteElo "1676"]
[BlackElo "1717"]
[Annotator "NA RC"]
[PlyCount "93"]
[EventDate "2024.10.03"]
[EventType "team-swiss"]
[EventRounds "7"]
[EventCountry "GER"]
[SourceTitle "playchess.com"]
[Source "ChessBase"]
[SourceQuality "1"]
[TimeControl "40/5400+30:1800+30"]

1. e4 {[%emt 0:00:06]} c5 {[%emt 0:00:13]} 2. Nf3 {[%emt 0:00:04]} d6 {[%emt 0:00:10]} 3. d4 {[%emt 0:00:05]} cxd4 {[%emt 0:00:08]} 4. Nxd4 {[%emt 0:00:04]} Nf6 {[%emt 0:00:16]} 5. Nc3 {[%emt 0:00:10]} Nc6 {[%emt 0:00:36]} 6. h3 {[%emt 0:01:40]} e6 {[%emt 0:05:45]} 7. Be3 {[%emt 0:00:27]} a6 {[%emt 0:00:40]} 8. a4 {[%emt 0:00:32]} Bd7 {[%emt 0:00:58]} 9. Nb3 {[%emt 0:00:33]} Be7 {[%emt 0:02:17]} 10. g4 {[%emt 0:00:29]} Bc8 {[%emt 0:15:54]} 11. Bg2 {[%emt 0:03:24]} Qc7 {[%emt 0:02:37]} 12. a5 {[%emt 0:00:18]} Nd7 {[%emt 0:04:35]} 13. O-O {[%emt 0:00:41]} O-O {[%emt 0:03:41]} 14. Na4 {[%emt 0:02:27]} Nce5 {[%emt 0:11:02]} 15. Nb6 {[%emt 0:01:34]} Rb8 {[%emt 0:05:54]} 16. Qe2 {[%emt 0:11:03]} Nxb6 {[%emt 0:04:29]} 17. Bxb6 {[%emt 0:00:24]} Qc4 {[%emt 0:06:06]} 18. Qd2 {[%emt 0:10:34]} Bd7 {[%emt 0:10:44]} 19. f4 {[%emt 0:00:38]} Ng6 {[%emt 0:01:18]} 20. Nd4 {[%emt 0:10:38]} Qc8 {[%emt 0:03:34]} 21. Rf3 {[%emt 0:05:07]} e5 {[%emt 0:04:04]} 22. Rc3 {[%emt 0:01:31]} Qe8 {[%emt 0:00:25]} 23. Ne2 {[%emt 0:01:04]} exf4 {[%emt 0:05:41]} 24. Bc7 {[%emt 0:01:50]} Bf6 {[%emt 0:05:22]} 25. Bxd6 {[%emt 0:00:44]} Bxc3 {[%emt 0:00:24]} 26. Nxc3 {[%emt 0:00:07]} Bc6 {[%emt 0:00:53]} 27. Bxb8 {[%emt 0:00:14]} Qxb8 {[%emt 0:00:05]} 28. Rd1 {[%emt 0:00:37]} Qe5 {[%emt 0:01:00]} 29. b4 {[%emt 0:01:40]} h6 {[%emt 0:00:15]} 30. Qd4 {[%emt 0:00:28]} Qxd4+ {[%emt 0:01:14]} 31. Rxd4 {[%emt 0:00:32]} Ne5 {[%emt 0:01:21]} 32. Nd5 {[%emt 0:01:13]} Ng6 {[%emt 0:01:48]} 33. Kf2 {[%emt 0:00:30]} Re8 {[%emt 0:01:57]} 34. c4 {[%emt 0:00:29]} Kf8 {[%emt 0:00:16]} 35. Nc3 {[%emt 0:01:50]} Ke7 {[%emt 0:01:00]} 36. b5 {[%emt 0:00:15]} axb5 {[%emt 0:00:06]} 37. cxb5 {[%emt 0:00:06]} Bd7 {[%emt 0:00:06]} 38. Nd5+ {[%emt 0:00:14]} Kf8 {[%emt 0:00:49]} 39. Nc7 {[%emt 0:00:36]} Rd8 {[%emt 0:00:39]} 40. a6 {[%emt 0:00:43]} bxa6 {[%emt 0:01:02]} 41. bxa6 {[%emt 0:30:14]} Ke7 {[%emt 0:03:55]} 42. a7 {[%emt 0:00:00]} Bc6 {[%emt 0:00:50]} 43. Rxd8 {[%emt 0:00:00]} Kxd8 {[%emt 0:00:07]} 44. e5 {[%emt 0:00:00]} f3 {[%emt 0:02:07]} 45. Bxf3 {[%emt 0:00:00]} Bxf3 {[%emt 0:01:39]} 46. Kxf3 {[%emt 0:00:00]} Nxe5+ {[%emt 0:00:08]} 47. Ke4 {[%emt 0:00:00]} 1-0

[Event "DLM Youth 2024"]
[Site "Tuebingen"]
[Date "2024.10.04"]
[Round "3"]
[White "Tu, Tiffany"]
[Black "Roessling, Laura Marie"]
[Result "1-0"]
[ECO "C90"]
[WhiteElo "1675"]
[BlackElo "1624"]
[Annotator "NA RC"]
[PlyCount "83"]
[EventDate "2024.10.03"]
[EventType "team-swiss"]
[EventRounds "7"]
[EventCountry "GER"]
[SourceTitle "playchess.com"]
[Source "ChessBase"]
[SourceQuality "1"]
[TimeControl "40/5400+30:1800+30"]

1. e4 {[%emt 0:00:03]} e5 {[%emt 0:00:16]} 2. Nf3 {[%emt 0:00:05]} Nc6 {[%emt 0:00:21]} 3. Bb5 {[%emt 0:00:05]} a6 {[%emt 0:00:25]} 4. Ba4 {[%emt 0:00:04]} Nf6 {[%emt 0:01:01]} 5. d3 {[%emt 0:00:07]} b5 {[%emt 0:00:28]} 6. Bb3 {[%emt 0:00:06]} Be7 {[%emt 0:00:32]} 7. c3 {[%emt 0:00:19]} O-O {[%emt 0:00:53]} 8. O-O {[%emt 0:00:37]} d6 {[%emt 0:01:28]} 9. Re1 {[%emt 0:00:58]} Na5 {[%emt 0:02:28]} 10. Bc2 {[%emt 0:00:17]} c5 {[%emt 0:03:13]} 11. Nbd2 {[%emt 0:00:57]} Nc6 {[%emt 0:03:30]} 12. Nf1 {[%emt 0:01:08]} h6 {[%emt 0:01:24]} 13. Ng3 {[%emt 0:00:32]} Re8 {[%emt 0:03:25]} 14. a4 {[%emt 0:07:52]} Be6 {[%emt 0:04:50]} 15. h3 {[%emt 0:05:44]} Qc7 {[%emt 0:04:14]} 16. Be3 {[%emt 0:05:25]} Rad8 {[%emt 0:08:19]} 17. Qe2 {[%emt 0:08:10]} b4 {[%emt 0:12:51]} 18. d4 {[%emt 0:05:19]} cxd4 {[%emt 0:02:32]} 19. cxd4 {[%emt 0:00:53]} exd4 {[%emt 0:01:58]} 20. Nxd4 {[%emt 0:02:13]} Nxd4 {[%emt 0:02:01]} 21. Bxd4 {[%emt 0:00:37]} Bc4 {[%emt 0:07:43]} 22. Bd3 {[%emt 0:02:37]} Rc8 {[%emt 0:03:59]} 23. Rac1 {[%emt 0:09:05]} d5 {[%emt 0:07:04]} 24. e5 {[%emt 0:09:17]} Nh7 {[%emt 0:04:51]} 25. e6 {[%emt 0:03:13]} Bg5 {[%emt 0:02:47]} 26. Qc2 {[%emt 0:15:13]} Nf6 {[%emt 0:03:47]} 27. exf7+ {[%emt 0:02:49]} Qxf7 {[%emt 0:00:08]} 28. Bg6 {[%emt 0:02:55]} Rxe1+ {[%emt 0:00:36]} 29. Rxe1 {[%emt 0:00:11]} Qf8 {[%emt 0:01:50]} 30. Qf5 {[%emt 0:01:25]} Bb3 {[%emt 0:05:16]} 31. Qe6+ {[%emt 0:04:03]} Kh8 {[%emt 0:00:06]} 32. Qxa6 {[%emt 0:01:00]} Ra8 {[%emt 0:02:32]} 33. Qd3 {[%emt 0:01:37]} Bxa4 {[%emt 0:03:32]} 34. Nf5 {[%emt 0:02:02]} Be8 {[%emt 0:03:07]} 35. Ne7 {[%emt 0:01:00]} Ne4 {[%emt 0:01:22]} 36. Bxe8 {[%emt 0:00:46]} Qxe8 {[%emt 0:00:13]} 37. Nxd5 {[%emt 0:00:30]} Rd8 {[%emt 0:01:12]} 38. Rxe4 {[%emt 0:01:05]} Qc6 {[%emt 0:00:22]} 39. Nxb4 {[%emt 0:01:05]} Qc1+ {[%emt 0:01:27]} 40. Kh2 {[%emt 0:01:01]} Qc7+ {[%emt 0:01:04]} 41. Be5 {[%emt 0:31:22]} Qc5 {[%emt 0:30:20]} 42. Qg3 {[%emt 0:06:44]} 1-0

[Event "DLM Youth 2024"]
[Site "Tuebingen"]
[Date "2024.10.04"]
[Round "3"]
[White "Noennig, Lotte"]
[Black "Lu, Sheng"]
[Result "1-0"]
[ECO "C54"]
[WhiteElo "1658"]
[BlackElo "1559"]
[Annotator "NA RC"]
[PlyCount "43"]
[EventDate "2024.10.03"]
[EventType "team-swiss"]
[EventRounds "7"]
[EventCountry "GER"]
[SourceTitle "playchess.com"]
[Source "ChessBase"]
[SourceQuality "1"]
[TimeControl "40/5400+30:1800+30"]

1. e4 {[%emt 0:00:03]} e5 {[%emt 0:00:05]} 2. Nf3 {[%emt 0:00:08]} Nc6 {[%emt 0:00:08]} 3. Bc4 {[%emt 0:00:14]} Bc5 {[%emt 0:00:11]} 4. c3 {[%emt 0:00:09]} Nf6 {[%emt 0:00:10]} 5. d3 {[%emt 0:00:23]} O-O {[%emt 0:00:32]} 6. Nbd2 {[%emt 0:00:54]} d6 {[%emt 0:01:03]} 7. O-O {[%emt 0:01:10]} Ne7 {[%emt 0:02:38]} 8. Re1 {[%emt 0:02:23]} Ng6 {[%emt 0:02:51]} 9. Nf1 {[%emt 0:03:18]} Be6 {[%emt 0:01:37]} 10. Bb3 {[%emt 0:04:58]} Re8 {[%emt 0:04:33]} 11. Ng3 {[%emt 0:02:39]} d5 {[%emt 0:01:58]} 12. Qe2 {[%emt 0:07:39]} Nf4 {[%emt 0:10:56]} 13. Qc2 {[%emt 0:02:55]} Bg4 {[%emt 0:07:00]} 14. Nxe5 {[%emt 0:09:33]} Ng6 {[%emt 0:12:30]} 15. Nxg6 {[%emt 0:04:42]} hxg6 {[%emt 0:01:02]} 16. Bg5 {[%emt 0:02:14]} Qd7 {[%emt 0:03:11]} 17. Bxf6 {[%emt 0:02:03]} gxf6 {[%emt 0:00:29]} 18. Bxd5 {[%emt 0:01:35]} c6 {[%emt 0:01:11]} 19. Bb3 {[%emt 0:01:12]} Re7 {[%emt 0:02:42]} 20. d4 {[%emt 0:02:15]} Bb6 {[%emt 0:00:42]} 21. e5 {[%emt 0:02:42]} Rae8 {[%emt 0:03:53]} 22. Qxg6+ {[%emt 0:01:38]} 1-0

[Event "DLM Youth 2024"]
[Site "Tuebingen"]
[Date "2024.10.04"]
[Round "3"]
[White "Mersmann, Jasmin"]
[Black "Stiehler, Mara"]
[Result "0-1"]
[ECO "B40"]
[WhiteElo "1607"]
[BlackElo "1601"]
[Annotator "NA RC"]
[PlyCount "78"]
[EventDate "2024.10.03"]
[EventType "team-swiss"]
[EventRounds "7"]
[EventCountry "GER"]
[SourceTitle "playchess.com"]
[Source "ChessBase"]
[SourceQuality "1"]
[TimeControl "40/5400+30:1800+30"]

1. e4 {[%emt 0:00:04]} e6 {[%emt 0:00:04]} 2. b3 {[%emt 0:00:15]} d5 {[%emt 0:00:07]} 3. Bb2 {[%emt 0:00:22]} c5 {[%emt 0:01:30]} 4. exd5 {[%emt 0:01:01]} exd5 {[%emt 0:00:11]} 5. Nf3 {[%emt 0:01:10]} Nc6 {[%emt 0:01:45]} 6. Be2 {[%emt 0:01:35]} d4 {[%emt 0:00:46]} 7. d3 {[%emt 0:02:08]} Nf6 {[%emt 0:01:56]} 8. a3 {[%emt 0:02:44]} a5 {[%emt 0:00:47]} 9. Nbd2 {[%emt 0:02:01]} Bf5 {[%emt 0:01:26]} 10. O-O {[%emt 0:01:19]} Bd6 {[%emt 0:01:25]} 11. Nc4 {[%emt 0:01:06]} Bc7 {[%emt 0:00:06]} 12. Re1 {[%emt 0:02:37]} O-O {[%emt 0:01:02]} 13. c3 {[%emt 0:01:18]} b5 {[%emt 0:02:11]} 14. Ncd2 {[%emt 0:05:52]} dxc3 {[%emt 0:04:19]} 15. Bxc3 {[%emt 0:00:17]} Nd5 {[%emt 0:00:17]} 16. Bb2 {[%emt 0:00:56]} Nf4 {[%emt 0:02:28]} 17. Ne4 {[%emt 0:01:15]} Nd4 {[%emt 0:02:50]} 18. Nxd4 {[%emt 0:01:26]} cxd4 {[%emt 0:00:08]} 19. Bf3 {[%emt 0:01:11]} Rc8 {[%emt 0:02:51]} 20. Bc1 {[%emt 0:03:49]} Nd5 {[%emt 0:07:10]} 21. Bb2 {[%emt 0:01:24]} Nf4 {[%emt 0:06:01]} 22. Bc1 {[%emt 0:01:25]} Qh4 {[%emt 0:02:26]} 23. Bxf4 {[%emt 0:01:30]} Qxf4 {[%emt 0:00:16]} 24. Ng3 {[%emt 0:00:47]} Rfe8 {[%emt 0:02:58]} 25. Rxe8+ {[%emt 0:02:24]} Rxe8 {[%emt 0:00:14]} 26. Qc2 {[%emt 0:03:12]} h6 {[%emt 0:01:35]} 27. Qc6 {[%emt 0:01:20]} Re5 {[%emt 0:06:04]} 28. Rd1 {[%emt 0:11:14]} Bxd3 {[%emt 0:03:01]} 29. h3 {[%emt 0:09:56]} Re6 {[%emt 0:02:04]} 30. Qa8+ {[%emt 0:01:06]} Kh7 {[%emt 0:00:08]} 31. Rxd3 {[%emt 0:03:10]} Re1+ {[%emt 0:00:09]} 32. Kh2 {[%emt 0:00:20]} Qc1 {[%emt 0:00:31]} 33. Rd1 {[%emt 0:00:59]} Rxd1 {[%emt 0:00:23]} 34. Bxd1 {[%emt 0:00:09]} Qxd1 {[%emt 0:00:12]} 35. Qe4+ {[%emt 0:00:18]} g6 {[%emt 0:00:30]} 36. f4 {[%emt 0:03:18]} Qxb3 {[%emt 0:04:23]} 37. Qxd4 {[%emt 0:00:29]} Qa4 {[%emt 0:02:36]} 38. Qd7 {[%emt 0:00:46]} Qxf4 {[%emt 0:00:31]} 39. Kh1 {[%emt 0:01:47]} Kg7 {[%emt 0:02:45]} 0-1

[Event "DLM Youth 2024"]
[Site "Tuebingen"]
[Date "2024.10.04"]
[Round "3"]
[White "Albrecht, Sidney Jenna"]
[Black "Baklan, Kira"]
[Result "0-1"]
[ECO "A35"]
[WhiteElo "1544"]
[BlackElo "1550"]
[Annotator "NA RC"]
[PlyCount "76"]
[EventDate "2024.10.03"]
[EventType "team-swiss"]
[EventRounds "7"]
[EventCountry "GER"]
[SourceTitle "playchess.com"]
[Source "ChessBase"]
[SourceQuality "1"]
[TimeControl "40/5400+30:1800+30"]

1. c4 {[%emt 0:00:03]} c5 {[%emt 0:00:07]} 2. Nf3 {[%emt 0:00:07]} Nc6 {[%emt 0:00:07]} 3. d4 {[%emt 0:00:16]} cxd4 {[%emt 0:00:24]} 4. Nxd4 {[%emt 0:00:08]} g6 {[%emt 0:00:16]} 5. Nc3 {[%emt 0:01:52]} Bg7 {[%emt 0:00:09]} 6. Be3 {[%emt 0:01:56]} Nf6 {[%emt 0:03:21]} 7. g3 {[%emt 0:02:53]} Ng4 {[%emt 0:06:05]} 8. Nxc6 {[%emt 0:08:43]} bxc6 {[%emt 0:00:08]} 9. Bf4 {[%emt 0:02:49]} Qb6 {[%emt 0:03:58]} 10. Qc2 {[%emt 0:16:02]} Qxf2+ {[%emt 0:11:47]} 11. Kd2 {[%emt 0:04:17]} Qd4+ {[%emt 0:16:08]} 12. Qd3 {[%emt 0:04:08]} Nf2 {[%emt 0:01:34]} 13. Qxd4 {[%emt 0:01:21]} Bxd4 {[%emt 0:00:17]} 14. Rg1 {[%emt 0:01:38]} Ng4 {[%emt 0:01:35]} 15. Rh1 {[%emt 0:01:30]} e5 {[%emt 0:00:41]} 16. Bg5 {[%emt 0:04:30]} f6 {[%emt 0:00:17]} 17. h3 {[%emt 0:00:57]} Nf2 {[%emt 0:00:27]} 18. Bxf6 {[%emt 0:01:05]} Rf8 {[%emt 0:00:09]} 19. Bg7 {[%emt 0:02:54]} Rf7 {[%emt 0:00:08]} 20. Bxe5 {[%emt 0:02:17]} Bxc3+ {[%emt 0:03:04]} 21. Bxc3 {[%emt 0:00:55]} Nxh1 {[%emt 0:00:09]} 22. Be5 {[%emt 0:04:10]} d6 {[%emt 0:02:09]} 23. Bg2 {[%emt 0:03:38]} Bb7 {[%emt 0:00:13]} 24. Bxd6 {[%emt 0:05:12]} Rd8 {[%emt 0:00:18]} 25. Rxh1 {[%emt 0:00:47]} Rxd6+ {[%emt 0:00:05]} 26. Kc3 {[%emt 0:00:40]} c5 {[%emt 0:00:13]} 27. Bxb7 {[%emt 0:01:21]} Rxb7 {[%emt 0:00:05]} 28. Rf1 {[%emt 0:00:28]} Re7 {[%emt 0:00:14]} 29. Rf2 {[%emt 0:00:37]} Re3+ {[%emt 0:00:09]} 30. Kc2 {[%emt 0:00:23]} Rxg3 {[%emt 0:00:10]} 31. h4 {[%emt 0:00:41]} Rd4 {[%emt 0:00:26]} 32. b3 {[%emt 0:00:33]} Rxh4 {[%emt 0:00:39]} 33. Kd2 {[%emt 0:00:26]} Rd4+ {[%emt 0:00:15]} 34. Kc2 {[%emt 0:00:16]} h5 {[%emt 0:00:27]} 35. Rh2 {[%emt 0:00:40]} h4 {[%emt 0:00:13]} 36. Kc1 {[%emt 0:00:42]} h3 {[%emt 0:00:39]} 37. Kc2 {[%emt 0:00:40]} Rh4 {[%emt 0:00:07]} 38. Kd2 {[%emt 0:00:52]} Rg2 {[%emt 0:00:09]} 0-1

[Event "DLM Youth 2024"]
[Site "Tuebingen"]
[Date "2024.10.04"]
[Round "3"]
[White "Margaryan, Mane"]
[Black "Wolf, Helena"]
[Result "0-1"]
[ECO "E30"]
[WhiteElo "1493"]
[BlackElo "1545"]
[Annotator "NA RC"]
[PlyCount "84"]
[EventDate "2024.10.03"]
[EventType "team-swiss"]
[EventRounds "7"]
[EventCountry "GER"]
[SourceTitle "playchess.com"]
[Source "ChessBase"]
[SourceQuality "1"]
[TimeControl "40/5400+30:1800+30"]

1. d4 {[%emt 0:00:01]} Nf6 {[%emt 0:00:05]} 2. c4 {[%emt 0:00:05]} e6 {[%emt 0:00:04]} 3. Nc3 {[%emt 0:00:06]} Bb4 {[%emt 0:00:07]} 4. Bg5 {[%emt 0:01:40]} h6 {[%emt 0:00:18]} 5. Bxf6 {[%emt 0:00:07]} Qxf6 {[%emt 0:00:13]} 6. e4 {[%emt 0:01:03]} O-O {[%emt 0:03:45]} 7. Nf3 {[%emt 0:01:51]} b6 {[%emt 0:01:46]} 8. Bd3 {[%emt 0:01:50]} Bb7 {[%emt 0:01:21]} 9. O-O {[%emt 0:02:10]} Re8 {[%emt 0:06:41]} 10. Ne2 {[%emt 0:06:18]} Qd8 {[%emt 0:08:40]} 11. a3 {[%emt 0:02:31]} Be7 {[%emt 0:00:15]} 12. b4 {[%emt 0:01:02]} d5 {[%emt 0:01:15]} 13. exd5 {[%emt 0:02:32]} exd5 {[%emt 0:00:19]} 14. c5 {[%emt 0:02:00]} a5 {[%emt 0:09:11]} 15. Rc1 {[%emt 0:09:39]} axb4 {[%emt 0:06:20]} 16. axb4 {[%emt 0:02:15]} bxc5 {[%emt 0:01:29]} 17. bxc5 {[%emt 0:01:56]} c6 {[%emt 0:02:28]} 18. Ne5 {[%emt 0:05:48]} Nd7 {[%emt 0:00:53]} 19. f4 {[%emt 0:02:04]} Nxe5 {[%emt 0:08:04]} 20. fxe5 {[%emt 0:04:14]} Ba6 {[%emt 0:04:29]} 21. Bb1 {[%emt 0:05:56]} Bg5 {[%emt 0:01:38]} 22. Rc3 {[%emt 0:04:20]} Qe7 {[%emt 0:08:20]} 23. Qc2 {[%emt 0:07:35]} g6 {[%emt 0:02:07]} 24. Rff3 {[%emt 0:06:09]} Bc8 {[%emt 0:04:09]} 25. Ng3 {[%emt 0:08:43]} Bg4 {[%emt 0:01:22]} 26. Rf1 {[%emt 0:02:45]} Reb8 {[%emt 0:01:59]} 27. h3 {[%emt 0:02:55]} Be6 {[%emt 0:03:53]} 28. Ne2 {[%emt 0:02:48]} Bf5 {[%emt 0:00:55]} 29. Rxf5 {[%emt 0:03:20]} gxf5 {[%emt 0:00:34]} 30. Qxf5 {[%emt 0:01:16]} f6 {[%emt 0:00:25]} 31. Qg6+ {[%emt 0:08:32]} Qg7 {[%emt 0:00:58]} 32. Qxg7+ {[%emt 0:01:39]} Kxg7 {[%emt 0:00:08]} 33. Bf5 {[%emt 0:00:23]} fxe5 {[%emt 0:00:51]} 34. dxe5 {[%emt 0:00:26]} Rf8 {[%emt 0:04:38]} 35. Ng3 {[%emt 0:01:15]} Ra1+ {[%emt 0:00:35]} 36. Kh2 {[%emt 0:00:30]} Bf4 {[%emt 0:00:07]} 37. Bg4 {[%emt 0:00:35]} Bxe5 {[%emt 0:00:46]} 38. Re3 {[%emt 0:00:37]} Bf4 {[%emt 0:05:52]} 39. Re7+ {[%emt 0:00:28]} Kh8 {[%emt 0:03:23]} 40. Re6 {[%emt 0:00:31]} Ra3 {[%emt 0:00:47]} 41. Rxc6 {[%emt 0:30:26]} Bxg3+ {[%emt 0:30:09]} 42. Kg1 {[%emt 0:00:28]} Ra1+ {[%emt 0:00:27]} 0-1